fUST/lending_fUST_20260517
["ID","MTS","AMOUNT","RATE_DAILY","PERIOD"]
[422523540,1779030652000,-500.0,0.00011232,2]
[422523522,1779030652000,-541.63569337,0.00011232,2]
[422523541,1779030652000,-1301.62,0.00011232,2]
[422523548,1779030652000,-500.0,0.00011232,2]
[422523545,1779030652000,-500.0,0.00011232,2]
[422523546,1779030652000,-500.0,0.00011232,2]
[422523542,1779030652000,-500.0,0.00011232,2]
[422523544,1779030652000,-500.0,0.00011232,2]
[422523558,1779030652000,-500.0,0.00011232,2]
[422523556,1779030652000,-368.06591117,0.00011232,2]
[422523550,1779030652000,-500.0,0.00011232,2]
[422523553,1779030652000,-3450.43,0.00011232,2]
[422523555,1779030652000,-604.24,0.00011232,2]
[422523559,1779030652000,-500.0,0.00011232,2]
[422523557,1779030652000,-455.13159975,0.00011232,2]
[422523549,1779030652000,-500.0,0.00011232,2]
[422523533,1779030652000,-500.0,0.00011232,2]
[422523543,1779030652000,-4519.73,0.00011232,2]
[422523527,1779030652000,-500.0,0.00011232,2]
[422523507,1779030652000,-4703.9,0.00011232,2]
[422523523,1779030652000,-542.08900102,0.00011232,2]
[422523495,1779030652000,-500.0,0.00011232,2]
[422523560,1779030652000,-500.0,0.00011232,2]
[422523506,1779030652000,-500.0,0.00011232,2]
[422523505,1779030652000,-500.0,0.00011232,2]
[422523500,1779030652000,-632.84,0.00011232,2]
[422523499,1779030652000,-2075.67,0.00011232,2]
[422523496,1779030652000,-520.94,0.00011232,2]
[422523504,1779030652000,-500.0,0.00011232,2]
[422523501,1779030652000,-500.0,0.00011232,2]
[422523498,1779030652000,-500.0,0.00011232,2]
[422523503,1779030652000,-1241.29,0.00011232,2]
[422523502,1779030652000,-708.0,0.00011232,2]
[422523497,1779030652000,-500.0,0.00011232,2]
[422523508,1779030652000,-288.37919249,0.00011232,2]
[422523510,1779030652000,-500.0,0.00011232,2]
[422523512,1779030652000,-500.0,0.00011232,2]
[422523515,1779030652000,-505.17,0.00011232,2]
[422523514,1779030652000,-500.0,0.00011232,2]
[422523513,1779030652000,-500.0,0.00011232,2]
[422523511,1779030652000,-500.0,0.00011232,2]
[422523519,1779030652000,-909.47,0.00011232,2]
[422523520,1779030652000,-500.0,0.00011232,2]
[422523517,1779030652000,-2151.48,0.00011232,2]
[422523518,1779030652000,-500.0,0.00011232,2]
[422523516,1779030652000,-521.32,0.00011232,2]
[422523509,1779030652000,-500.0,0.00011232,2]
[422523521,1779030652000,-500.0,0.00011232,2]
[422523525,1779030652000,-500.0,0.00011232,2]
[422523530,1779030652000,-500.0,0.00011232,2]
[422523528,1779030652000,-500.08,0.00011232,2]
[422523551,1779030652000,-637.39,0.00011232,2]
[422523535,1779030652000,-507.40166816,0.00011232,2]
[422523552,1779030652000,-604.3,0.00011232,2]
[422523589,1779030652000,-500.0,0.00011232,2]
[422523598,1779030652000,-500.0,0.00011232,2]
[422523595,1779030652000,-500.0,0.00011232,2]
[422523593,1779030652000,-500.0,0.00011232,2]
[422523596,1779030652000,-500.0,0.00011232,2]
[422523597,1779030652000,-1037.24,0.00011232,2]
[422523594,1779030652000,-500.0,0.00011232,2]
[422523611,1779030652000,-3137.91,0.00011232,2]
[422523608,1779030652000,-673.64,0.00011232,2]
[422523607,1779030652000,-2866.3847,0.00011232,2]
[422523602,1779030652000,-1100.08,0.00011232,2]
[422523612,1779030652000,-3399.45,0.00011232,2]
[422523603,1779030652000,-500.0,0.00011232,2]
[422523601,1779030652000,-500.0,0.00011232,2]
[422523604,1779030652000,-500.0,0.00011232,2]
[422523605,1779030652000,-679.2,0.00011232,2]
[422523606,1779030652000,-2866.3847,0.00011232,2]
[422523609,1779030652000,-500.0,0.00011232,2]
[422523610,1779030652000,-500.0,0.00011232,2]
[422523613,1779030652000,-500.0,0.00011232,2]
[422523616,1779030652000,-500.0,0.00011232,2]
[422523617,1779030652000,-500.0,0.00011232,2]
[422523615,1779030652000,-581.83032069,0.00011232,2]
[422523619,1779030652000,-500.0,0.00011232,2]
[422523618,1779030652000,-500.0,0.00011232,2]
[422523620,1779030652000,-404.13267467,0.00011232,2]
[422523621,1779030652000,-500.0,0.00011232,2]
[422523622,1779030652000,-500.0,0.00011232,2]
[422523554,1779030652000,-500.0,0.00011232,2]
[422523623,1779030652000,-3007.64,0.00011232,2]
[422523600,1779030652000,-646.24,0.00011232,2]
[422523614,1779030652000,-500.0,0.00011232,2]
[422523590,1779030652000,-2530.81,0.00011232,2]
[422523561,1779030652000,-2680.23,0.00011232,2]
[422523591,1779030652000,-500.0,0.00011232,2]
[422523572,1779030652000,-500.0,0.00011232,2]
[422523562,1779030652000,-738.42,0.00011232,2]
[422523565,1779030652000,-3713.96,0.00011232,2]
[422523566,1779030652000,-697.34,0.00011232,2]
[422523564,1779030652000,-688.39,0.00011232,2]
[422523567,1779030652000,-500.0,0.00011232,2]
[422523568,1779030652000,-500.0,0.00011232,2]
[422523573,1779030652000,-562.57,0.00011232,2]
[422523574,1779030652000,-500.0,0.00011232,2]
[422523570,1779030652000,-584.65,0.00011232,2]
[422523571,1779030652000,-7083.66,0.00011232,2]
[422523569,1779030652000,-500.0,0.00011232,2]
[422523576,1779030652000,-500.0,0.00011232,2]
[422523563,1779030652000,-500.0,0.00011232,2]
[422523587,1779030652000,-654.26,0.00011232,2]
[422523586,1779030652000,-500.0,0.00011232,2]
[422523592,1779030652000,-8001.54,0.00011232,2]
[422523588,1779030652000,-500.0,0.00011232,2]
[422523580,1779030652000,-2946.15,0.00011232,2]
[422523583,1779030652000,-522.51,0.00011232,2]
[422523581,1779030652000,-582.97,0.00011232,2]
[422523579,1779030652000,-583.39,0.00011232,2]
[422523584,1779030652000,-500.0,0.00011232,2]
[422523575,1779030652000,-500.0,0.00011232,2]
[422523585,1779030652000,-502.94,0.00011232,2]
[422523578,1779030652000,-500.0,0.00011232,2]
[422523599,1779030652000,-500.0,0.00011232,2]
[422523577,1779030652000,-500.0,0.00011232,2]
[422523582,1779030652000,-500.0,0.00011232,2]
[422523664,1779030653000,-9529.05,0.00011232,2]
[422523665,1779030653000,-500.0,0.00011232,2]
[422523654,1779030653000,-500.0,0.00011232,2]
[422523657,1779030653000,-500.0,0.00011232,2]
[422523658,1779030653000,-500.0,0.00011232,2]
[422523655,1779030653000,-500.0,0.00011232,2]
[422523666,1779030653000,-735.68,0.00011232,2]
[422523667,1779030653000,-790.92,0.00011232,2]
[422523662,1779030653000,-500.0,0.00011232,2]
[422523647,1779030653000,-500.0,0.00011232,2]
[422523668,1779030653000,-500.0,0.00011232,2]
[422523663,1779030653000,-500.0,0.00011232,2]
[422523653,1779030653000,-881.57,0.00011232,2]
[422523660,1779030653000,-2519.01,0.00011232,2]
[422523661,1779030653000,-827.84,0.00011232,2]
[422523671,1779030653000,-527.7,0.00011232,2]
[422523674,1779030653000,-500.0,0.00011232,2]
[422523670,1779030653000,-500.0,0.00011232,2]
[422523673,1779030653000,-500.0,0.00011232,2]
[422523672,1779030653000,-1542.74,0.00011232,2]
[422523646,1779030653000,-583.39,0.00011232,2]
[422523676,1779030653000,-500.0,0.00011232,2]
[422523659,1779030653000,-635.98,0.00011232,2]
[422523642,1779030653000,-4191.85,0.00011232,2]
[422523635,1779030653000,-500.0,0.00011232,2]
[422523644,1779030653000,-500.0,0.00011232,2]
[422523669,1779030653000,-500.0,0.00011232,2]
[422523624,1779030653000,-500.0,0.00011232,2]
[422523625,1779030653000,-1000.0,0.00011232,2]
[422523627,1779030653000,-500.0,0.00011232,2]
[422523630,1779030653000,-500.0,0.00011232,2]
[422523629,1779030653000,-500.0,0.00011232,2]
[422523628,1779030653000,-610.7,0.00011232,2]
[422523631,1779030653000,-10066.63,0.00011232,2]
[422523626,1779030653000,-3528.38,0.00011232,2]
[422523633,1779030653000,-500.0,0.00011232,2]
[422523638,1779030653000,-1902.21,0.00011232,2]
[422523645,1779030653000,-7197.45,0.00011232,2]
[422523636,1779030653000,-500.0,0.00011232,2]
[422523632,1779030653000,-2075.36,0.00011232,2]
[422523634,1779030653000,-1318.09,0.00011232,2]
[422523639,1779030653000,-500.0,0.00011232,2]
[422523640,1779030653000,-500.0,0.00011232,2]
[422523643,1779030653000,-500.0,0.00011232,2]
[422523641,1779030653000,-500.71,0.00011232,2]
[422523648,1779030653000,-924.52,0.00011232,2]
[422523651,1779030653000,-500.0,0.00011232,2]
[422523649,1779030653000,-500.0,0.00011232,2]
[422523652,1779030653000,-500.0,0.00011232,2]
[422523650,1779030653000,-49814.39,0.00011232,2]
[422523637,1779030653000,-446.13203153,0.00011232,2]
[422523675,1779030653000,-2614.21,0.00011232,2]
[422523707,1779030653000,-679.3506562,0.00011317,7]
[422523680,1779030653000,-520.88,0.00011232,2]
[422523709,1779030653000,-160.0,0.00011332,2]
[422523710,1779030653000,-4502.563957,0.00011332,2]
[422523708,1779030653000,-158.2,0.00011317,7]
[422523712,1779030653000,-160.0,0.00011332,2]
[422523713,1779030653000,-5224.372202,0.00011332,2]
[422523711,1779030653000,-8845.127914,0.00011332,2]
[422523723,1779030653000,-1510.61,0.000114,2]
[422523714,1779030653000,-10288.744404,0.00011332,2]
[422523681,1779030653000,-500.0,0.00011232,2]
[422523715,1779030653000,-761.516547,0.00011338,2]
[422523720,1779030653000,-408.39,0.000114,2]
[422523717,1779030653000,-220.42105808,0.00011376,7]
[422523719,1779030653000,-120554.1710166,0.000114,2]
[422523721,1779030653000,-183.08914579,0.000114,2]
[422523716,1779030653000,-208.9919,0.00011369,2]
[422523718,1779030653000,-200.0,0.00011399,2]
[422523724,1779030653000,-1508.345,0.000114,2]
[422523725,1779030653000,-1508.34,0.000114,2]
[422523726,1779030653000,-2245.546,0.000114,2]
[422523728,1779030653000,-2245.54,0.000114,2]
[422523727,1779030653000,-2245.546,0.000114,2]
[422523730,1779030653000,-260363.98593922,0.000114,30]
[422523729,1779030653000,-10115.45762428,0.000114,2]
[422523706,1779030653000,-1315.91469812,0.00011317,7]
[422523705,1779030653000,-645.96255848,0.00011317,7]
[422523722,1779030653000,-408.49,0.000114,2]
[422523699,1779030653000,-3898.14427,0.00011276,2]
[422523679,1779030653000,-500.0,0.00011232,2]
[422523703,1779030653000,-349439.47375222,0.00011306,2]
[422523677,1779030653000,-500.0,0.00011232,2]
[422523682,1779030653000,-6724.79,0.00011232,2]
[422523683,1779030653000,-2001.56,0.00011232,2]
[422523695,1779030653000,-2134.429076,0.00011276,2]
[422523693,1779030653000,-3595.2373971,0.00011233,2]
[422523684,1779030653000,-500.0,0.00011232,2]
[422523685,1779030653000,-3166.73,0.00011232,2]
[422523694,1779030653000,-160.0,0.00011276,2]
[422523687,1779030653000,-1018.2,0.00011232,2]
[422523691,1779030653000,-500.0,0.00011232,2]
[422523678,1779030653000,-500.0,0.00011232,2]
[422523690,1779030653000,-500.0,0.00011232,2]
[422523686,1779030653000,-500.0,0.00011232,2]
[422523702,1779030653000,-10115.45762428,0.000113,2]
[422523701,1779030653000,-200.15522891,0.000113,5]
[422523700,1779030653000,-5000.0,0.0001129,15]
[422523697,1779030653000,-160.0,0.00011276,2]
[422523704,1779030653000,-737.8143533,0.00011317,7]
[422523696,1779030653000,-4108.858153,0.00011276,2]
[422523689,1779030653000,-500.0,0.00011232,2]
[422523688,1779030653000,-3944.67,0.00011232,2]
[422523692,1779030653000,-3119.56,0.00011233,2]
[422523698,1779030653000,-2029.072135,0.00011276,2]
[422523752,1779030654000,-590.0,0.00011506,2]
[422523746,1779030654000,-501.04827471,0.00011506,2]
[422523749,1779030654000,-500.0,0.00011506,2]
[422523750,1779030654000,-500.0,0.00011506,2]
[422523747,1779030654000,-500.0,0.00011506,2]
[422523740,1779030654000,-352.29262907,0.00011232,2]
[422523743,1779030654000,-1864.2520268,0.000115,2]
[422523753,1779030654000,-500.0,0.00011506,2]
[422523742,1779030654000,-500.0,0.00011232,2]
[422523751,1779030654000,-500.0,0.00011506,2]
[422523732,1779030654000,-21094.7471359,0.000114,30]
[422523739,1779030654000,-500.0,0.00010958,2]
[422523738,1779030654000,-1480.69323318,0.000115,2]
[422523737,1779030654000,-3352.4475414,0.000115,2]
[422523736,1779030654000,-1748.45620761,0.000115,2]
[422523733,1779030654000,-59648.02177753,0.000114,30]
[422523735,1779030654000,-1669.60861529,0.000115,2]
[422523734,1779030654000,-208.03610569,0.00011411,7]
[422523731,1779030654000,-117901.97466698,0.000114,30]
[422523748,1779030654000,-500.0,0.00011506,2]
[422523741,1779030654000,-147.70737093,0.00011232,2]
[422523745,1779030654000,-200.0,0.00011505,2]
[422523744,1779030654000,-160.0,0.000115,4]
[422523767,1779030654000,-365.19933671,0.00011506,2]
[422523755,1779030654000,-500.0,0.00011506,2]
[422523772,1779030654000,-500.0,0.00011506,2]
[422523775,1779030654000,-500.0,0.00011506,2]
[422523774,1779030654000,-500.0,0.00011506,2]
[422523773,1779030654000,-500.0,0.00011506,2]
[422523771,1779030654000,-576.57,0.00011506,2]
[422523769,1779030654000,-500.0,0.00011506,2]
[422523770,1779030654000,-2235.39,0.00011506,2]
[422523768,1779030654000,-134.80066329,0.00011506,2]
[422523761,1779030654000,-500.0,0.00011506,2]
[422523776,1779030654000,-500.0,0.00011506,2]
[422523763,1779030654000,-500.0,0.00011506,2]
[422523765,1779030654000,-500.0,0.00011506,2]
[422523766,1779030654000,-527.37,0.00011506,2]
[422523754,1779030654000,-500.0,0.00011506,2]
[422523764,1779030654000,-2170.89,0.00011506,2]
[422523757,1779030654000,-500.0,0.00011506,2]
[422523758,1779030654000,-500.0,0.00011506,2]
[422523756,1779030654000,-500.0,0.00011506,2]
[422523762,1779030654000,-541.72,0.00011506,2]
[422523760,1779030654000,-548.01299085,0.00011506,2]
[422523759,1779030654000,-500.0,0.00011506,2]
[422523796,1779030655000,-500.0,0.00011506,2]
[422523795,1779030655000,-603.96,0.00011506,2]
[422523794,1779030655000,-500.0,0.00011506,2]
[422523806,1779030655000,-177.77342758,0.00011506,2]
[422523805,1779030655000,-322.22657242,0.00011506,2]
[422523803,1779030655000,-520.92,0.00011506,2]
[422523778,1779030655000,-634.13,0.00011506,2]
[422523797,1779030655000,-521.4,0.00011506,2]
[422523800,1779030655000,-1545.78,0.00011506,2]
[422523801,1779030655000,-603.36,0.00011506,2]
[422523802,1779030655000,-500.0,0.00011506,2]
[422523798,1779030655000,-500.0,0.00011506,2]
[422523789,1779030655000,-500.0,0.00011506,2]
[422523799,1779030655000,-500.0,0.00011506,2]
[422523790,1779030655000,-500.51,0.00011506,2]
[422523780,1779030655000,-787.9992,0.00011506,2]
[422523786,1779030655000,-618.50764949,0.00011506,2]
[422523784,1779030655000,-500.0,0.00011506,2]
[422523792,1779030655000,-500.0,0.00011506,2]
[422523782,1779030655000,-500.0,0.00011506,2]
[422523791,1779030655000,-500.0,0.00011506,2]
[422523785,1779030655000,-500.0,0.00011506,2]
[422523783,1779030655000,-500.0,0.00011506,2]
[422523793,1779030655000,-500.0,0.00011506,2]
[422523787,1779030655000,-500.0,0.00011506,2]
[422523781,1779030655000,-500.07,0.00011506,2]
[422523804,1779030655000,-500.0,0.00011506,2]
[422523777,1779030655000,-565.72,0.00011506,2]
[422523779,1779030655000,-500.0,0.00011506,2]
[422523788,1779030655000,-501.81,0.00011506,2]
[422523807,1779030655000,-500.0,0.00011506,2]
[422523811,1779030655000,-583.5,0.00011506,2]
[422523809,1779030655000,-500.0,0.00011506,2]
[422523840,1779030655000,-173.01948143,0.00011506,2]
[422523839,1779030655000,-520.92,0.00011506,2]
[422523831,1779030655000,-430.372252,0.00010959,2]
[422523838,1779030655000,-164.65310888,0.00011506,2]
[422523834,1779030655000,-430.372252,0.00010959,2]
[422523835,1779030655000,-430.372252,0.00010959,2]
[422523837,1779030655000,-416.78931114,0.00011232,2]
[422523810,1779030655000,-897.03,0.00011506,2]
[422523836,1779030655000,-153.87068886,0.00011232,2]
[422523833,1779030655000,-430.372252,0.00010959,2]
[422523829,1779030655000,-430.372252,0.00010959,2]
[422523830,1779030655000,-430.372252,0.00010959,2]
[422523826,1779030655000,-540.64,0.00011506,2]
[422523825,1779030655000,-470.3026642,0.00011506,2]
[422523823,1779030655000,-92.2973358,0.00011506,2]
[422523832,1779030655000,-430.372252,0.00010959,2]
[422523828,1779030655000,-322.23848306,0.00011506,2]
[422523827,1779030655000,-500.0,0.00011506,2]
[422523814,1779030655000,-439.67087862,0.00011506,2]
[422523817,1779030655000,-500.0,0.00011506,2]
[422523816,1779030655000,-500.0,0.00011506,2]
[422523813,1779030655000,-500.0,0.00011506,2]
[422523815,1779030655000,-500.0,0.00011506,2]
[422523818,1779030655000,-500.0,0.00011506,2]
[422523819,1779030655000,-649.44,0.00011506,2]
[422523820,1779030655000,-500.0,0.00011506,2]
[422523812,1779030655000,-583.47,0.00011506,2]
[422523822,1779030655000,-500.0,0.00011506,2]
[422523821,1779030655000,-500.0,0.00011506,2]
[422523824,1779030655000,-500.0,0.00010958,2]
[422523808,1779030655000,-500.0,0.00011506,2]
[422523850,1779030656000,-430.372252,0.00010959,2]
[422523856,1779030656000,-56.319186,0.00011506,2]
[422523855,1779030656000,-207.72132155,0.00011506,2]
[422523854,1779030656000,-160.0,0.00011276,2]
[422523851,1779030656000,-430.372252,0.00010959,2]
[422523852,1779030656000,-430.372252,0.00010959,2]
[422523853,1779030656000,-430.372252,0.00010959,2]
[422523847,1779030656000,-430.372252,0.00010959,2]
[422523843,1779030656000,-500.0,0.00011506,2]
[422523848,1779030656000,-430.372252,0.00010959,2]
[422523846,1779030656000,-500.0,0.00010958,2]
[422523844,1779030656000,-500.0,0.00011506,2]
[422523845,1779030656000,-292.27867845,0.00011506,2]
[422523842,1779030656000,-500.0,0.00011506,2]
[422523841,1779030656000,-326.98051857,0.00011506,2]
[422523857,1779030656000,-430.372252,0.00010959,2]
[422523849,1779030656000,-430.372252,0.00010959,2]
[422523858,1779030656000,-2017.527369,0.00011276,2]
[422523864,1779030656000,-500.0,0.00011506,2]
[422523860,1779030656000,-500.0,0.00011506,2]
[422523859,1779030656000,-443.680814,0.00011506,2]
[422523878,1779030656000,-978.26,0.00011506,2]
[422523877,1779030656000,-500.0,0.00011506,2]
[422523875,1779030656000,-500.0,0.00011506,2]
[422523873,1779030656000,-504.63,0.00011506,2]
[422523874,1779030656000,-500.0,0.00011506,2]
[422523871,1779030656000,-500.0,0.00011506,2]
[422523872,1779030656000,-306.84412407,0.00011506,2]
[422523870,1779030656000,-501.6020872,0.00011506,2]
[422523866,1779030656000,-500.0,0.00011506,2]
[422523867,1779030656000,-1131.24,0.00011506,2]
[422523868,1779030656000,-1870.61,0.00011506,2]
[422523876,1779030656000,-508.47,0.00011506,2]
[422523861,1779030656000,-500.0,0.00011506,2]
[422523865,1779030656000,-500.0,0.00011506,2]
[422523863,1779030656000,-500.0,0.00011506,2]
[422523862,1779030656000,-500.0,0.00011506,2]
[422523869,1779030656000,-622.11,0.00011506,2]
[422523879,1779030657000,-98.674643,0.00011506,2]
[422523907,1779031831000,-5000.0,7.528e-05,2]
[422523909,1779031831000,-389.945,7.603e-05,2]
[422523908,1779031831000,-0.53605594,7.603e-05,2]
[422523906,1779031831000,-5000.0,7.453e-05,2]
[422523917,1779031837000,-364.51894406,7.603e-05,2]
[422523919,1779031837000,-300.0,8.077e-05,2]
[422523918,1779031837000,-389.75194085,7.798e-05,2]
[422523921,1779031837000,-888.435972,8.689e-05,2]
[422523922,1779031837000,-389.255,8.961e-05,2]
[422523920,1779031837000,-888.435972,8.338e-05,2]
[422523923,1779031837000,-888.435972,9.04e-05,2]
[422523925,1779031837000,-173.67798356,9.06e-05,2]
[422523926,1779031837000,-273.0,9.06e-05,2]
[422523927,1779031837000,-63752.47818819,9.061e-05,2]
[422523928,1779031837000,-160.0,9.151e-05,2]
[422523924,1779031837000,-300.0,9.059e-05,2]
[422523966,1779031838000,-1602.04650872,0.00010199,2]
[422523967,1779031838000,-1602.04650872,0.00010199,2]
[422523968,1779031838000,-1602.04650872,0.00010199,2]
[422523953,1779031838000,-604.81810665,0.00010199,2]
[422523964,1779031838000,-1602.04650872,0.00010199,2]
[422523959,1779031838000,-1602.04650872,0.00010199,2]
[422523962,1779031838000,-1602.04650872,0.00010199,2]
[422523961,1779031838000,-1602.04650872,0.00010199,2]
[422523960,1779031838000,-1602.04650872,0.00010199,2]
[422523958,1779031838000,-604.81810665,0.00010199,2]
[422523963,1779031838000,-1602.04650872,0.00010199,2]
[422523965,1779031838000,-1602.04650872,0.00010199,2]
[422523974,1779031838000,-10115.45762429,0.000105,2]
[422523971,1779031838000,-185.0,0.0001038,2]
[422523970,1779031838000,-10115.45762429,0.000103,2]
[422523972,1779031838000,-443.0,0.0001038,2]
[422523973,1779031838000,-10115.45762429,0.000104,2]
[422523976,1779031838000,-305.67871071,0.00010596,7]
[422523975,1779031838000,-153.7113236,0.00010596,7]
[422523978,1779031838000,-314.8051436,0.00010596,7]
[422523977,1779031838000,-418.93290466,0.00010596,7]
[422523979,1779031838000,-10115.45762429,0.000106,2]
[422523980,1779031838000,-275.051,0.000106,2]
[422523981,1779031838000,-500.0,0.0001064,2]
[422523982,1779031838000,-10115.45762429,0.000107,2]
[422523969,1779031838000,-10115.45762429,0.000102,2]
[422523951,1779031838000,-604.81810665,0.00010199,2]
[422524020,1779031838000,-500.0,0.00010958,2]
[422523952,1779031838000,-604.81810665,0.00010199,2]
[422523987,1779031838000,-3522.47101188,0.000108,2]
[422523934,1779031838000,-209.46645233,9.936e-05,7]
[422523929,1779031838000,-161.67668242,9.151e-05,2]
[422523932,1779031838000,-459.9072902,9.798e-05,2]
[422523933,1779031838000,-152.83935536,9.936e-05,7]
[422523931,1779031838000,-888.435972,9.742e-05,2]
[422523930,1779031838000,-888.435972,9.391e-05,2]
[422523936,1779031838000,-10115.45762429,0.0001,2]
[422523935,1779031838000,-157.4025718,9.936e-05,7]
[422523937,1779031838000,-160.0,0.0001,2]
[422523939,1779031838000,-246.01854921,0.00010092,2]
[422523942,1779031838000,-10115.45762429,0.000101,2]
[422523955,1779031838000,-604.81810665,0.00010199,2]
[422523941,1779031838000,-888.435972,0.00010093,2]
[422523944,1779031838000,-604.81810665,0.00010199,2]
[422523945,1779031838000,-604.81810665,0.00010199,2]
[422523948,1779031838000,-604.81810665,0.00010199,2]
[422523947,1779031838000,-604.81810665,0.00010199,2]
[422523943,1779031838000,-222.11629217,0.00010199,2]
[422523938,1779031838000,-157.91675105,0.00010092,2]
[422523946,1779031838000,-604.81810665,0.00010199,2]
[422523950,1779031838000,-604.81810665,0.00010199,2]
[422523949,1779031838000,-604.81810665,0.00010199,2]
[422523954,1779031838000,-604.81810665,0.00010199,2]
[422523957,1779031838000,-604.81810665,0.00010199,2]
[422523956,1779031838000,-604.81810665,0.00010199,2]
[422523940,1779031838000,-500.0,0.00010092,2]
[422523986,1779031838000,-3172.76660099,0.000108,2]
[422524041,1779031838000,-3470.6839,0.00010958,2]
[422523985,1779031838000,-886.0,0.000108,2]
[422524018,1779031838000,-562.56,0.00010958,2]
[422524016,1779031838000,-583.47,0.00010958,2]
[422524024,1779031838000,-500.0,0.00010958,2]
[422524021,1779031838000,-500.0,0.00010958,2]
[422524017,1779031838000,-500.0,0.00010958,2]
[422524023,1779031838000,-315.4348374,0.00010958,2]
[422524022,1779031838000,-184.5651626,0.00010958,2]
[422524019,1779031838000,-500.0,0.00010958,2]
[422524025,1779031838000,-500.0,0.00010958,2]
[422524037,1779031838000,-500.0,0.00010958,2]
[422524027,1779031838000,-500.0,0.00010958,2]
[422524026,1779031838000,-500.0,0.00010958,2]
[422523984,1779031838000,-2534.22001142,0.000108,2]
[422524029,1779031838000,-500.0,0.00010958,2]
[422524034,1779031838000,-500.0,0.00010958,2]
[422524032,1779031838000,-500.0,0.00010958,2]
[422524035,1779031838000,-562.65,0.00010958,2]
[422524030,1779031838000,-670.89,0.00010958,2]
[422524033,1779031838000,-500.0,0.00010958,2]
[422524036,1779031838000,-340.78338378,0.00010958,2]
[422524031,1779031838000,-648.12,0.00010958,2]
[422524038,1779031838000,-500.0,0.00010958,2]
[422524040,1779031838000,-500.0,0.00010958,2]
[422524039,1779031838000,-500.0,0.00010958,2]
[422524042,1779031838000,-500.0,0.00010958,2]
[422524014,1779031838000,-500.0,0.00010958,2]
[422524015,1779031838000,-545.03,0.00010958,2]
[422524028,1779031838000,-500.0,0.00010958,2]
[422524009,1779031838000,-500.0,0.00010958,2]
[422524013,1779031838000,-493.1625993,0.00010958,2]
[422523988,1779031838000,-229.83432848,0.00010846,2]
[422523989,1779031838000,-270.587717,0.00010895,2]
[422523990,1779031838000,-8035.10694264,0.000109,2]
[422523992,1779031838000,-500.0,0.00010958,2]
[422523991,1779031838000,-2080.35068165,0.000109,2]
[422523994,1779031838000,-500.0,0.00010958,2]
[422523993,1779031838000,-500.0,0.00010958,2]
[422523995,1779031838000,-500.0,0.00010958,2]
[422523996,1779031838000,-500.0,0.00010958,2]
[422523998,1779031838000,-500.0,0.00010958,2]
[422523999,1779031838000,-500.0,0.00010958,2]
[422523983,1779031838000,-500.0,0.00010701,2]
[422523997,1779031838000,-500.0,0.00010958,2]
[422524000,1779031838000,-500.0,0.00010958,2]
[422524012,1779031838000,-6.8374007,0.00010958,2]
[422524011,1779031838000,-500.0,0.00010958,2]
[422524008,1779031838000,-500.0,0.00010958,2]
[422524005,1779031838000,-500.0,0.00010958,2]
[422524002,1779031838000,-500.0,0.00010958,2]
[422524007,1779031838000,-500.0,0.00010958,2]
[422524004,1779031838000,-500.0,0.00010958,2]
[422524006,1779031838000,-500.0,0.00010958,2]